fUST/lending_fUST_20250727
["ID","MTS","AMOUNT","RATE_DAILY","PERIOD"]
[375228919,1753591852782,-460.0,0.00020547,2]
[375228921,1753591852795,-460.0,0.00020547,2]
[375228923,1753591852804,-460.0,0.00020547,2]
[375228924,1753591852814,-2456.43,0.00020547,2]
[375228926,1753591852823,-460.0,0.00020547,2]
[375228928,1753591852833,-938.04,0.00020547,2]
[375228929,1753591852843,-460.0,0.00020547,2]
[375228930,1753591852852,-525.99,0.00020547,2]
[375228931,1753591852861,-460.0,0.00020547,2]
[375228932,1753591852871,-488.79,0.00020547,2]
[375228933,1753591852880,-773.1,0.00020547,2]
[375228934,1753591852890,-460.0,0.00020547,2]
[375228935,1753591852899,-845.26,0.00020547,2]
[375228936,1753591852908,-460.0,0.00020547,2]
[375228938,1753591852918,-460.0,0.00020547,2]
[375228939,1753591852927,-460.0,0.00020547,2]
[375228940,1753591852937,-460.0,0.00020547,2]
[375228942,1753591852946,-798.34,0.00020547,2]
[375228944,1753591852956,-460.0,0.00020547,2]
[375228945,1753591852965,-465.57702629,0.00020547,2]
[375228946,1753591852976,-584.78,0.00020547,2]
[375228947,1753591852986,-672.53,0.00020547,2]
[375228948,1753591852996,-2999.76,0.00020547,2]
[375228949,1753591853005,-460.0,0.00020547,2]
[375228950,1753591853015,-151.0,0.00020547,2]
[375228951,1753591853024,-1147.37,0.00020547,2]
[375228952,1753591853034,-460.0,0.00020547,2]
[375228953,1753591853044,-460.0,0.00020547,2]
[375228954,1753591853053,-460.0,0.00020547,2]
[375228955,1753591853064,-790.12,0.00020547,2]
[375228956,1753591853074,-730.21,0.00020547,2]
[375228957,1753591853083,-151.0,0.00020547,2]
[375228958,1753591853093,-151.0,0.00020547,2]
[375228959,1753591853103,-2109.78,0.00020547,2]
[375228960,1753591853112,-836.26,0.00020547,2]
[375228961,1753591853122,-560.59,0.00020547,2]
[375228962,1753591853131,-460.0,0.00020547,2]
[375228963,1753591853140,-581.12,0.00020547,2]
[375228964,1753591853150,-317.07667341,0.00020547,2]
[375228965,1753591853159,-932.6,0.00020547,2]
[375228966,1753591853169,-2465.52,0.00020547,2]
[375228967,1753591853179,-594.88,0.00020547,2]
[375228968,1753591853189,-788.56,0.00020547,2]
[375228969,1753591853199,-1130.94,0.00020547,2]
[375228970,1753591853208,-460.0,0.00020547,2]
[375228971,1753591853218,-263.935478,0.00020547,2]
[375228972,1753591853227,-460.0,0.00020547,2]
[375228973,1753591853237,-659.51,0.00020547,2]
[375228974,1753591853246,-151.0,0.00020547,2]
[375228975,1753591853256,-460.0,0.00020547,2]
[375228976,1753591853265,-266.08128899,0.00020547,2]
[375228977,1753591853275,-1707.22,0.00020547,2]
[375228978,1753591853283,-548.44,0.00020547,2]
[375228979,1753591853293,-844.26,0.00020547,2]
[375228980,1753591853302,-460.0,0.00020547,2]
[375228981,1753591853311,-460.0,0.00020547,2]
[375228982,1753591853321,-160.144118,0.00020547,2]
[375228983,1753591853330,-160.144118,0.00020547,2]
[375228984,1753591853340,-758.57,0.00020547,2]
[375228985,1753591853350,-563.12,0.00020547,2]
[375228986,1753591853359,-460.0,0.00020547,2]
[375228987,1753591853368,-460.0,0.00020547,2]
[375228988,1753591853378,-385.933467,0.00020547,2]
[375228989,1753591853387,-151.0,0.00020547,2]
[375228990,1753591853397,-711.63,0.00020547,2]
[375228991,1753591853406,-385.933467,0.00020547,2]
[375228992,1753591853415,-1845.29,0.00020547,2]
[375228993,1753591853425,-537.76,0.00020547,2]
[375228994,1753591853435,-636.42,0.00020547,2]
[375228995,1753591853444,-460.0,0.00020547,2]
[375228996,1753591853454,-151.0,0.00020547,2]
[375228997,1753591853463,-787.68,0.00020547,2]
[375228998,1753591853473,-460.0,0.00020547,2]
[375228999,1753591853482,-818.54,0.00020547,2]
[375229000,1753591853492,-6023.97,0.00020547,2]
[375229001,1753591853501,-921.26,0.00020547,2]
[375229002,1753591853511,-151.0,0.00020547,2]
[375229003,1753591853520,-151.0,0.00020547,2]
[375229004,1753591853529,-151.0,0.00020547,2]
[375229005,1753591853539,-460.0,0.00020547,2]
[375229006,1753591853548,-460.0,0.00020547,2]
[375229007,1753591853558,-460.0,0.00020547,2]
[375229008,1753591853567,-460.0,0.00020547,2]
[375229009,1753591853577,-460.0,0.00020547,2]
[375229010,1753591853587,-151.0,0.00020548,2]
[375229011,1753591853597,-151.0,0.00020548,2]
[375229012,1753591853607,-527.0,0.00020548,2]
[375229013,1753591853616,-151.0,0.00020548,2]
[375229014,1753591853626,-151.0,0.00020548,2]
[375229015,1753591853635,-151.0,0.00020548,2]
[375229016,1753591853645,-151.0,0.00020548,2]
[375229017,1753591853654,-151.0,0.00020548,2]
[375229018,1753591853665,-151.0,0.00020548,2]
[375229019,1753591853675,-151.0,0.00020548,2]
[375229020,1753591853684,-151.0,0.00020548,2]
[375229022,1753591853694,-154.22183122,0.00020548,2]
[375229024,1753591853704,-151.0,0.00020548,2]
[375229026,1753591853714,-502.0,0.00020548,2]
[375229028,1753591853724,-151.18783443,0.00020548,2]
[375229030,1753591853736,-151.48953185,0.00020548,2]
[375229032,1753591853745,-500.0,0.00020548,2]
[375229033,1753591853755,-500.0,0.00020548,2]
[375229035,1753591853764,-200.91677972,0.00020548,2]
[375229037,1753591853774,-500.0,0.00020548,2]
[375229039,1753591853783,-151.41282193,0.00020548,2]
[375229041,1753591853792,-151.0,0.00020548,2]
[375229042,1753591853803,-151.56985288,0.00020548,2]
[375229043,1753591853812,-151.81329179,0.00020548,2]
[375229044,1753591853821,-155.35843954,0.00020548,2]
[375229045,1753591853830,-152.6791758,0.00020548,2]
[375229046,1753591853840,-151.0,0.00020548,2]
[375229047,1753591853850,-151.0,0.00020548,2]
[375229048,1753591853859,-151.0,0.00020548,2]
[375229049,1753591853868,-151.0,0.00020548,2]
[375229050,1753591853878,-151.0,0.0002059,2]
[375229051,1753591853887,-151.0,0.0002059,2]
[375229052,1753591853896,-151.0,0.0002059,2]
[375229053,1753591853906,-151.0,0.0002059,2]
[375229054,1753591853915,-150.0,0.00020592,2]
[375229056,1753591853925,-371.102,0.0002064,2]
[375229058,1753591853935,-6153.4174091,0.00020728,3]
[375229060,1753591853944,-160.0437776,0.00020795,2]
[375229062,1753591853953,-153.0,0.00020795,2]
[375229064,1753591853963,-306.5717614,0.00020795,2]
[375229066,1753591853972,-180.6287758,0.00020795,2]
[375229068,1753591853982,-158.2910449,0.00020795,2]
[375229070,1753591853991,-596.5156857,0.00020795,2]
[375229086,1753591854135,-178.3698008,0.00020795,2]
[375229088,1753591854145,-160.0437776,0.00020795,2]
[375229089,1753591854155,-577.9763186,0.00020795,2]
[375229090,1753591854165,-153.0,0.00020795,2]
[375229092,1753591854174,-178.3698008,0.00020795,2]
[375229094,1753591854184,-160.0437776,0.00020795,2]
[375229096,1753591854193,-153.0,0.00020795,2]
[375229098,1753591854203,-577.9763186,0.00020795,2]
[375229100,1753591854212,-160.0437776,0.00020795,2]
[375229102,1753591854221,-178.3698008,0.00020795,2]
[375229104,1753591854231,-153.0,0.00020795,2]
[375229106,1753591854240,-151.0,0.000208,3]
[375229107,1753591854251,-460.0,0.0002082,2]
[375229108,1753591854260,-460.0,0.0002082,2]
[375229109,1753591854269,-460.0,0.0002082,2]
[375229110,1753591854279,-460.0,0.0002082,2]
[375229111,1753591854288,-460.0,0.0002082,2]
[375229112,1753591854298,-460.0,0.0002082,2]
[375229113,1753591854307,-460.0,0.0002082,2]
[375229114,1753591854317,-466.1381054,0.0002082,2]
[375229115,1753591854327,-460.0,0.0002082,2]
[375229116,1753591854336,-460.0,0.0002082,2]
[375229117,1753591854345,-460.0,0.0002082,2]
[375229118,1753591854355,-212.05195182,0.0002082,2]
[375229119,1753591854364,-460.0,0.0002082,2]
[375229120,1753591854375,-606.22,0.0002082,2]
[375229121,1753591854384,-2260.23,0.0002082,2]
[375229122,1753591854393,-266.417653,0.0002082,2]
[375229123,1753591854403,-579.11,0.0002082,2]
[375229124,1753591854412,-196.279068,0.0002082,2]
[375229125,1753591854422,-196.279068,0.0002082,2]
[375229126,1753591854431,-1892.51,0.0002082,2]
[375229127,1753591854441,-1979.13,0.0002082,2]
[375229128,1753591854450,-191.77357373,0.0002082,2]
[375229129,1753591854461,-460.0,0.0002082,2]
[375229130,1753591854471,-460.0,0.0002082,2]
[375229131,1753591854481,-1459.09,0.0002082,2]
[375229132,1753591854490,-460.0,0.0002082,2]
[375229133,1753591854500,-843.36,0.0002082,2]
[375229134,1753591854509,-460.0,0.0002082,2]
[375229135,1753591854518,-680.26,0.0002082,2]
[375229136,1753591854528,-561.02,0.0002082,2]
[375229137,1753591854537,-460.0,0.00020821,2]
[375229138,1753591854547,-3053.11,0.00020821,2]
[375229139,1753591854557,-460.0,0.00020821,2]
[375229140,1753591854566,-1108.1,0.00020821,2]
[375229141,1753591854576,-552.26,0.00020821,2]
[375229142,1753591854585,-1475.97,0.00020821,2]
[375229143,1753591854595,-151.0,0.00020821,2]
[375229144,1753591854605,-460.0,0.00020821,2]
[375229145,1753591854614,-153.915522,0.00020821,2]
[375229146,1753591854624,-460.0,0.00020821,2]
[375229147,1753591854633,-482.96,0.00020821,2]
[375229148,1753591854643,-460.0,0.00020821,2]
[375229149,1753591854652,-460.0,0.00020821,2]
[375229150,1753591854662,-608.14,0.00020821,2]
[375229151,1753591854672,-460.0,0.00020821,2]
[375229152,1753591854681,-844.88,0.00020821,2]
[375229153,1753591854691,-460.0,0.00020821,2]
[375229154,1753591854700,-818.66,0.00020821,2]
[375229155,1753591854709,-880.14,0.00020821,2]
[375229156,1753591854719,-151.0,0.00020821,2]
[375229157,1753591854731,-2120.97,0.00020821,2]
[375229158,1753591854741,-460.0,0.00020821,2]
[375229159,1753591854750,-460.0,0.00020821,2]
[375229160,1753591854760,-332.18629561,0.00020821,2]
[375229161,1753591854769,-622.07,0.00020821,2]
[375229162,1753591854778,-151.0,0.00020821,2]
[375229163,1753591854788,-460.0,0.00020821,2]
[375229164,1753591854797,-460.0,0.00020821,2]
[375229165,1753591854807,-151.0,0.00020821,2]
[375229166,1753591854816,-564.9,0.00020821,2]
[375229167,1753591854825,-460.0,0.00020821,2]
[375229168,1753591854835,-460.0,0.00020821,2]
[375229169,1753591854844,-151.0,0.00020821,2]
[375229170,1753591854854,-622.74,0.00020821,2]
[375229171,1753591854863,-645.93,0.00020821,2]
[375229172,1753591854873,-460.0,0.00020821,2]
[375229173,1753591854882,-460.0,0.00020821,2]
[375229174,1753591854894,-460.0,0.00020821,2]
[375229175,1753591854904,-460.0,0.00020821,2]
[375229176,1753591854914,-437.88,0.00020821,2]
[375229177,1753591854923,-460.0,0.00020821,2]
[375229178,1753591854933,-2456.43,0.00020821,2]
[375229179,1753591854943,-460.0,0.00020821,2]
[375229180,1753591854952,-151.0,0.00020821,2]
[375229181,1753591854962,-151.0,0.00020821,2]
[375229182,1753591854972,-938.04,0.00020821,2]
[375229183,1753591854981,-525.99,0.00020821,2]
[375229184,1753591854991,-219.14,0.00020821,2]
[375229185,1753591855000,-488.79,0.00020821,2]
[375229186,1753591855009,-773.1,0.00020821,2]
[375229187,1753591855018,-460.0,0.00020821,2]
[375229188,1753591855027,-845.26,0.00020821,2]
[375229189,1753591855037,-460.0,0.00020821,2]
[375229190,1753591855046,-460.0,0.00020821,2]
[375229191,1753591855056,-460.0,0.00020821,2]
[375229192,1753591855066,-460.0,0.00020821,2]
[375229193,1753591855075,-798.34,0.00020821,2]
[375229194,1753591855085,-460.0,0.00020821,2]
[375229195,1753591855094,-584.78,0.00020821,2]
[375229196,1753591855104,-672.53,0.00020821,2]
[375229197,1753591855114,-2999.76,0.00020821,2]
[375229198,1753591855124,-460.0,0.00020821,2]
[375229199,1753591855133,-1147.37,0.00020821,2]
[375229200,1753591855143,-460.0,0.00020821,2]
[375229201,1753591855152,-460.0,0.00020821,2]
[375229202,1753591855162,-460.0,0.00020821,2]
[375229203,1753591855171,-790.12,0.00020821,2]
[375229204,1753591855181,-730.21,0.00020821,2]
[375229205,1753591855190,-2109.78,0.00020821,2]
[375229206,1753591855200,-836.26,0.00020821,2]
[375229207,1753591855209,-560.59,0.00020821,2]
[375229208,1753591855219,-460.0,0.00020821,2]
[375229209,1753591855229,-581.12,0.00020821,2]
[375229210,1753591855238,-932.6,0.00020821,2]
[375229211,1753591855247,-2465.52,0.00020821,2]
[375229212,1753591855256,-594.88,0.00020821,2]
[375229213,1753591855266,-788.56,0.00020821,2]
[375229214,1753591855275,-1130.94,0.00020821,2]
[375229215,1753591855284,-460.0,0.00020821,2]
[375229216,1753591855294,-586.78835794,0.00020821,2]
[375229217,1753591855303,-659.51,0.00020821,2]
[375229218,1753591855313,-460.0,0.00020821,2]
[375229220,1753591855323,-1707.22,0.00020821,2]
[375229222,1753591855332,-548.44,0.00020821,2]
[375229224,1753591855341,-844.26,0.00020821,2]
[375229226,1753591855351,-460.0,0.00020821,2]
[375229228,1753591855360,-460.0,0.00020821,2]
[375229230,1753591855370,-758.57,0.00020821,2]
[375229233,1753591855379,-563.12,0.00020821,2]
[375229235,1753591855389,-460.0,0.00020821,2]
[375229237,1753591855398,-460.0,0.00020821,2]
[375229239,1753591855407,-711.63,0.00020821,2]
[375229240,1753591855417,-1845.29,0.00020821,2]
[375229243,1753591855427,-537.76,0.00020821,2]
[375229245,1753591855436,-636.42,0.00020821,2]
[375229246,1753591855445,-460.0,0.00020821,2]
[375229248,1753591855455,-787.68,0.00020821,2]
[375229251,1753591855464,-460.0,0.00020821,2]
[375229253,1753591855474,-818.54,0.00020821,2]
[375229255,1753591855483,-6023.97,0.00020821,2]
[375229257,1753591855492,-921.26,0.00020821,2]
[375229259,1753591855502,-460.0,0.00020821,2]
[375229261,1753591855511,-460.0,0.00020821,2]
[375229263,1753591855520,-460.0,0.00020821,2]
[375229265,1753591855530,-460.0,0.00020821,2]
[375229268,1753591855550,-460.0,0.00020821,2]
[375229270,1753591855560,-151.0,0.00020822,2]
[375229272,1753591855570,-527.0,0.00020822,2]
[375229274,1753591855579,-151.0,0.00020822,2]
[375229276,1753591855589,-151.0,0.00020822,2]
[375229278,1753591855599,-151.0,0.00020822,2]
[375229280,1753591855609,-151.0,0.00020822,2]
[375229282,1753591855619,-151.0,0.00020822,2]
[375229284,1753591855629,-151.0,0.00020822,2]
[375229286,1753591855638,-151.0,0.00020822,2]
[375229288,1753591855648,-151.0,0.00020822,2]
[375229290,1753591855658,-151.0,0.00020822,2]
[375229292,1753591855667,-502.0,0.00020822,2]
[375229294,1753591855677,-500.0,0.00020822,2]
[375229295,1753591855687,-500.0,0.00020822,2]
[375229296,1753591855697,-500.0,0.00020822,2]
[375229297,1753591855706,-151.0,0.00020822,2]
[375229298,1753591855716,-151.0,0.00020822,2]
[375229299,1753591855728,-151.0,0.00020822,2]
[375229300,1753591855739,-160.0,0.00020889,3]
[375229301,1753591855749,-151.0,0.000209,3]
[375229302,1753591855758,-190.37625805,0.000209,2]
[375229303,1753591855768,-429.9863832,0.00020932,2]
[375229304,1753591855779,-865.4420379,0.00020932,2]
[375229305,1753591855791,-6153.4174091,0.00020934,4]
[375229306,1753591855801,-154.934238,0.00020985,3]
[375229307,1753591855813,-143933.34133049,0.00021,3]
[375229308,1753591855823,-151.0,0.00021,2]
[375229309,1753591855832,-151.32176,0.00021,2]
[375229310,1753591855843,-151.0,0.00021,2]
[375229311,1753591855852,-152.97131,0.00021,2]
[375229312,1753591855863,-158.530676,0.00021,2]
[375229313,1753591855872,-151.0,0.00021,2]
[375229314,1753591855882,-281.793566,0.00021,2]
[375229315,1753591855891,-151.0,0.00021,2]
[375229316,1753591855902,-151.0,0.00021,2]
[375229317,1753591855912,-151.0,0.00021,2]
[375229318,1753591855922,-152.926859,0.00021,2]
[375229319,1753591855931,-151.0,0.00021,2]
[375229320,1753591855941,-196.279068,0.00021,2]
[375229321,1753591855950,-196.279068,0.00021,2]
[375229322,1753591855960,-151.0,0.00021,2]
[375229323,1753591855970,-151.0,0.00021,2]
[375229324,1753591855980,-151.0,0.00021,2]
[375229325,1753591855990,-151.0,0.00021,2]
[375229326,1753591856002,-160.144118,0.00021,2]
[375229327,1753591856011,-160.144118,0.00021,2]
[375229328,1753591856021,-385.933467,0.00021,2]
[375229329,1753591856031,-151.0,0.00021,2]
[375229330,1753591856040,-385.933467,0.00021,2]
[375229331,1753591856049,-151.0,0.00021,2]
[375229332,1753591856059,-152.931538,0.00021,2]
[375229333,1753591856069,-157.964737,0.00021,2]
[375229334,1753591856079,-152.648334,0.00021072,2]
[375229335,1753591856089,-183.4,0.00021083,4]
[375229336,1753591856099,-468.96038787,0.00021094,2]
[375229337,1753591856109,-462.96155838,0.00021094,2]
[375229338,1753591856119,-460.0,0.00021094,2]
[375229339,1753591856128,-460.0,0.00021094,2]
[375229340,1753591856138,-460.0,0.00021094,2]
[375229341,1753591856148,-460.0,0.00021094,2]
[375229342,1753591856158,-460.0,0.00021094,2]
[375229343,1753591856168,-460.0,0.00021094,2]
[375229344,1753591856178,-460.0,0.00021094,2]
[375229345,1753591856187,-460.0,0.00021094,2]
[375229346,1753591856197,-606.22,0.00021094,2]
[375229347,1753591856207,-2260.23,0.00021094,2]
[375229348,1753591856217,-151.0,0.00021094,2]
[375229349,1753591856227,-151.0,0.00021094,2]
[375229350,1753591856237,-579.11,0.00021094,2]
[375229351,1753591856247,-1892.51,0.00021094,2]
[375229352,1753591856256,-1897.27380629,0.00021094,2]
[375229353,1753591856280,-81.85619371,0.00021094,2]
[375229354,1753591856289,-460.0,0.00021094,2]
[375229355,1753591856299,-425.13520192,0.00021094,2]
[375229356,1753591856309,-1459.09,0.00021094,2]
[375229357,1753591856318,-460.0,0.00021094,2]
[375229358,1753591856328,-460.0,0.00021094,2]
[375229359,1753591856338,-843.36,0.00021094,2]
[375229360,1753591856347,-680.26,0.00021094,2]
[375229361,1753591856357,-561.02,0.00021094,2]
[375229362,1753591856367,-3053.11,0.00021095,2]
[375229363,1753591856376,-460.0,0.00021095,2]
[375229364,1753591856385,-1108.1,0.00021095,2]
[375229365,1753591856395,-552.26,0.00021095,2]
[375229366,1753591856405,-1475.97,0.00021095,2]
[375229367,1753591856414,-460.0,0.00021095,2]
[375229368,1753591856424,-460.0,0.00021095,2]
[375229369,1753591856433,-482.96,0.00021095,2]
[375229370,1753591856442,-541.62,0.00021095,2]
[375229371,1753591856452,-460.0,0.00021095,2]
[375229372,1753591856461,-608.14,0.00021095,2]
[375229373,1753591856471,-460.0,0.00021095,2]
[375229374,1753591856481,-844.88,0.00021095,2]
[375229375,1753591856491,-460.0,0.00021095,2]
[375229376,1753591856501,-818.66,0.00021095,2]
[375229377,1753591856510,-880.14,0.00021095,2]
[375229378,1753591856565,-152.887501,0.00021095,2]
[375229379,1753591856575,-2120.97,0.00021095,2]
[375229380,1753591856585,-460.0,0.00021095,2]
[375229381,1753591856594,-460.0,0.00021095,2]
[375229382,1753591856604,-622.07,0.00021095,2]
[375229383,1753591856614,-460.0,0.00021095,2]
[375229384,1753591856627,-460.0,0.00021095,2]
[375229385,1753591856637,-564.9,0.00021095,2]
[375229386,1753591856647,-261.191421,0.00021095,2]
[375229387,1753591856656,-460.0,0.00021095,2]
[375229388,1753591856666,-622.74,0.00021095,2]
[375229389,1753591856676,-645.93,0.00021095,2]
[375229390,1753591856690,-460.0,0.00021095,2]
[375229391,1753591856700,-460.0,0.00021095,2]
[375229392,1753591856709,-460.0,0.00021095,2]
[375229393,1753591856718,-460.0,0.00021095,2]
[375229394,1753591856730,-460.0,0.00021095,2]
[375229395,1753591856740,-2456.43,0.00021095,2]
[375229396,1753591856750,-460.0,0.00021095,2]
[375229397,1753591856759,-938.04,0.00021095,2]
[375229398,1753591856769,-525.99,0.00021095,2]
[375229399,1753591856779,-488.79,0.00021095,2]
[375229400,1753591856788,-773.1,0.00021095,2]
[375229401,1753591856798,-460.0,0.00021095,2]
[375229403,1753591856807,-845.26,0.00021095,2]
[375229405,1753591856817,-460.0,0.00021095,2]
[375229407,1753591856826,-460.0,0.00021095,2]
[375229409,1753591856836,-460.0,0.00021095,2]
[375229411,1753591856846,-221.27998799,0.00021095,2]
[375229413,1753591856856,-798.34,0.00021095,2]
[375229415,1753591856865,-460.0,0.00021095,2]
[375229417,1753591856874,-584.78,0.00021095,2]
[375229418,1753591856883,-672.53,0.00021095,2]
[375229420,1753591856893,-2999.76,0.00021095,2]
[375229422,1753591856904,-460.0,0.00021095,2]
[375229424,1753591856913,-1147.37,0.00021095,2]
[375229426,1753591856923,-460.0,0.00021095,2]
[375229428,1753591856934,-460.0,0.00021095,2]
[375229430,1753591856944,-790.12,0.00021095,2]
[375229432,1753591856953,-730.21,0.00021095,2]
[375229434,1753591856963,-836.26,0.00021095,2]
[375229436,1753591856972,-2109.78,0.00021095,2]
[375229438,1753591856982,-560.59,0.00021095,2]
[375229440,1753591856991,-460.0,0.00021095,2]
[375229442,1753591857000,-581.12,0.00021095,2]
[375229444,1753591857009,-932.6,0.00021095,2]
[375229446,1753591857018,-2465.52,0.00021095,2]
[375229448,1753591857028,-594.88,0.00021095,2]
[375229450,1753591857037,-788.56,0.00021095,2]
[375229453,1753591857047,-1130.94,0.00021095,2]
[375229454,1753591857056,-460.0,0.00021095,2]
[375229457,1753591857066,-659.51,0.00021095,2]
[375229459,1753591857075,-1707.22,0.00021095,2]
[375229461,1753591857085,-548.44,0.00021095,2]
[375229463,1753591857094,-844.26,0.00021095,2]
[375229465,1753591857104,-460.0,0.00021095,2]
[375229466,1753591857113,-460.0,0.00021095,2]
[375229469,1753591857123,-758.57,0.00021095,2]
[375229471,1753591857132,-563.12,0.00021095,2]
[375229472,1753591857141,-460.0,0.00021095,2]
[375229475,1753591857151,-460.0,0.00021095,2]
[375229476,1753591857160,-711.63,0.00021095,2]
[375229478,1753591857169,-1845.29,0.00021095,2]
[375229481,1753591857179,-636.42,0.00021095,2]
[375229483,1753591857188,-537.76,0.00021095,2]
[375229485,1753591857198,-460.0,0.00021095,2]
[375229487,1753591857207,-787.68,0.00021095,2]
[375229489,1753591857216,-460.0,0.00021095,2]
[375229491,1753591857225,-818.54,0.00021095,2]
[375229492,1753591857235,-6023.97,0.00021095,2]
[375229495,1753591857245,-921.26,0.00021095,2]
[375229497,1753591857254,-460.0,0.00021095,2]
[375229499,1753591857264,-460.0,0.00021095,2]
[375229500,1753591857273,-460.0,0.00021095,2]
[375229502,1753591857283,-460.0,0.00021095,2]
[375229505,1753591857292,-151.0,0.00021096,2]
[375229507,1753591857303,-527.0,0.00021096,2]
[375229509,1753591857312,-200.14202723,0.00021096,2]
[375229511,1753591857321,-151.0,0.00021096,2]
[375229513,1753591857331,-151.0,0.00021096,2]
[375229515,1753591857341,-151.78449996,0.00021096,2]
[375229517,1753591857350,-198.0,0.00021096,2]
[375229519,1753591857360,-151.0,0.00021096,2]
[375229521,1753591857370,-502.0,0.00021096,2]
[375229523,1753591857380,-500.0,0.00021096,2]
[375229525,1753591857389,-422.76297711,0.00021096,2]
[375229527,1753591857398,-500.0,0.00021096,2]
[375229529,1753591857408,-151.0,0.00021096,2]
[375229531,1753591857418,-6153.4174091,0.00021141,4]
[375229533,1753591857428,-500.0,0.00021162,2]
[375229535,1753591857437,-500.0,0.00021164,2]
[375229537,1753591857447,-3965.15810358,0.00021269,2]
[375229539,1753591857458,-6153.4174091,0.00021348,5]
[375229541,1753591857467,-460.0,0.00021368,2]
[375229543,1753591857477,-460.0,0.00021368,2]
[375229545,1753591857487,-460.0,0.00021368,2]
[375229547,1753591857496,-460.0,0.00021368,2]
[375229549,1753591857506,-460.0,0.00021368,2]
[375229551,1753591857516,-460.0,0.00021368,2]
[375229553,1753591857526,-460.0,0.00021368,2]
[375229555,1753591857536,-606.22,0.00021368,2]
[375229558,1753591857546,-2260.23,0.00021368,2]
[375229560,1753591857556,-579.11,0.00021368,2]
[375229562,1753591857565,-1892.51,0.00021368,2]
[375229564,1753591857575,-1979.13,0.00021368,2]
[375229566,1753591857584,-460.0,0.00021368,2]
[375229568,1753591857593,-1459.09,0.00021368,2]
[375229570,1753591857603,-460.0,0.00021368,2]
[375229572,1753591857612,-460.0,0.00021368,2]
[375229574,1753591857621,-843.36,0.00021368,2]
[375229576,1753591857631,-680.26,0.00021368,2]
[375229578,1753591857640,-561.02,0.00021368,2]
[375229580,1753591857649,-5518.09065138,0.00021369,2]
[375229582,1753591857658,-3053.11,0.00021369,2]
[375229584,1753591857667,-460.0,0.00021369,2]
[375229586,1753591857677,-1108.1,0.00021369,2]
[375229588,1753591857687,-552.26,0.00021369,2]
[375229589,1753591857696,-1475.97,0.00021369,2]
[375229590,1753591857705,-460.0,0.00021369,2]
[375229591,1753591857715,-460.0,0.00021369,2]
[375229592,1753591857724,-482.96,0.00021369,2]
[375229593,1753591857737,-460.0,0.00021369,2]
[375229594,1753591857746,-608.14,0.00021369,2]
[375229595,1753591857756,-460.0,0.00021369,2]
[375229596,1753591857765,-844.88,0.00021369,2]
[375229597,1753591857775,-460.0,0.00021369,2]
[375229598,1753591857784,-818.66,0.00021369,2]
[375229599,1753591857793,-880.14,0.00021369,2]
[375229600,1753591857803,-2120.97,0.00021369,2]